[Event "FIDE Grand Swiss 2023"]
[Site "Villa Marina, Douglas, Isle of Man"]
[Date "2023.11.04"]
[Round "10.18"]
[White "Aravindh, Chithambaram Vr."]
[Black "Harikrishna, Pentala"]
[Result "1/2-1/2"]
[WhiteElo "2649"]
[BlackElo "2716"]
[EventDate "2023.10.25"]
[ECO "D10"]
[PlyCount "75"]
[BlackClock "00:21:17"]
[BlackFideId "5007003"]
[TimeControl "40/100 + 20/50 + 15 + 30s/move"]
[WhiteClock "01:14:30"]
[WhiteFideId "5072786"]

1.d4 {[%clk 01:40:50][%emt 00:00:08]} 1...d5 {[%clk 01:40:47][%emt 00:00:14]} 
2.c4 {[%clk 01:40:55][%emt 00:00:25]} 2...c6 {[%clk 01:41:11][%emt 00:00:06]} 
3.cxd5 {[%clk 01:39:09][%emt 00:02:16]} 3...cxd5 {[%clk 01:41:35][%emt
00:00:05]} 4.Nc3 {[%clk 01:39:35][%emt 00:00:04]} 4...Nc6 {[%clk 01:40:47][%emt
00:01:19]} 5.Nf3 {[%clk 01:32:26][%emt 00:07:38]} 5...Nf6 {[%clk 01:40:59][%emt
00:00:18]} 6.Bf4 {[%clk 01:32:42][%emt 00:00:14]} 6...a6 {[%clk 01:36:33][%emt
00:04:57]} 7.e3 {[%clk 01:32:48][%emt 00:00:23]} 7...Bg4 {[%clk 01:36:31][%emt
00:00:32]} 8.Be2 {[%clk 01:24:16][%emt 00:09:02]} 8...e6 {[%clk 01:36:07][%emt
00:00:53]} 9.O-O {[%clk 01:23:49][%emt 00:00:58]} 9...Bd6 {[%clk 01:30:13][%emt
00:06:23]} 10.Bxd6 {[%clk 01:23:04][%emt 00:01:16]} 10...Qxd6 {[%clk
01:30:32][%emt 00:00:10]} 11.Nd2 {[%clk 01:22:23][%emt 00:01:11]} 11...Bxe2 
{[%clk 01:21:36][%emt 00:09:27]} 12.Qxe2 {[%clk 01:22:30][%emt 00:00:22]} 
12...O-O {[%emt 00:01:20]} 13.Rfc1 {[%clk 01:22:36]} 13...Rac8 {[%clk
01:16:49][%emt 00:04:52]} 14.Qd1 {[%clk 01:19:58][%emt 00:03:08]} 14...Rc7 
{[%clk 00:58:46][%emt 00:18:33]} 15.Na4 {[%clk 01:20:14][%emt 00:00:14]} 
15...Nd7 {[%clk 00:57:21][%emt 00:01:54]} 16.Rc3 {[%clk 01:17:32][%emt
00:03:13]} 16...Rfc8 {[%clk 00:53:06][%emt 00:04:44]} 17.Rac1 {[%clk
01:17:44][%emt 00:00:17]} 17...Ne7 {[%clk 00:51:28][%emt 00:02:09]} 18.Rxc7 
{[%clk 01:17:41][%emt 00:00:34]} 18...Rxc7 {[%clk 00:51:50][%emt 00:00:09]} 
19.Nb3 {[%clk 01:17:58][%emt 00:00:13]} 19...b6 {[%clk 00:49:17][%emt 00:03:02]} 
20.Qf1 {[%clk 01:13:16][%emt 00:05:11]} 20...Rxc1 {[%clk 00:44:12][%emt
00:05:36]} 21.Qxc1 {[%clk 01:13:39][%emt 00:00:06]} 21...Qb4 {[%clk
00:43:09][%emt 00:01:33]} 22.Nc3 {[%clk 01:13:45][%emt 00:00:24]} 22...Qc4 
{[%clk 00:42:40][%emt 00:00:59]} 23.Nd2 {[%clk 01:14:03][%emt 00:00:13]} 
23...Qc8 {[%clk 00:40:15][%emt 00:02:55]} 24.Ne2 {[%clk 01:14:21][%emt
00:00:13]} 24...Kf8 {[%clk 00:39:04][%emt 00:01:41]} 25.Qxc8+ {[%clk
01:14:35][%emt 00:00:16]} 25...Nxc8 {[%clk 00:39:29][%emt 00:00:04]} 26.Nf4 
{[%clk 01:14:58][%emt 00:00:07]} 26...Nd6 {[%clk 00:38:21][%emt 00:01:38]} 
27.Nb1 {[%clk 01:15:22][%emt 00:00:06]} 27...Ke7 {[%clk 00:35:23][%emt
00:03:29]} 28.Kf1 {[%clk 01:15:29][%emt 00:00:23]} 28...Nc4 {[%clk
00:31:18][%emt 00:04:35]} 29.b3 {[%clk 01:15:06][%emt 00:00:53]} 29...Na5 
{[%clk 00:30:21][%emt 00:01:27]} 30.Ke2 {[%clk 01:15:07][%emt 00:00:28]} 
30...Nc6 {[%clk 00:30:31][%emt 00:00:20]} 31.Nc3 {[%clk 01:15:29][%emt
00:00:08]} 31...Kd6 {[%clk 00:30:27][%emt 00:00:34]} 32.Kd2 {[%clk
01:14:20][%emt 00:01:38]} 32...g5 {[%clk 00:25:46][%emt 00:05:11]} 33.Nfe2 
{[%clk 01:13:50][%emt 00:01:00]} 33...f5 {[%clk 00:24:14][%emt 00:02:02]} 34.f3 
{[%clk 01:14:10] [%emt 00:00:10]} 34...Nf6 {[%clk 00:24:09] [%emt 00:00:36]} 
35.Na4 {[%clk 01:14:03] [%emt 00:00:38]} 35...Nd7 {[%clk 00:24:01] [%emt
00:00:38]} 36.Nac3 {[%clk 01:14:24] [%emt 00:00:07]} 36...Nf6 {[%clk
00:24:09][%emt 00:00:36]} 37.Na4 {[%clk 01:14:03][%emt 00:00:38]} 37...Nd7 
{[%clk 00:24:01][%emt 00:00:38]} 38.Nac3 {[%clk 01:14:10][%emt 00:00:10]} 1/2-1/2

[Event "FIDE Grand Swiss 2023"]
[Site "Villa Marina, Douglas, Isle of Man"]
[Date "2023.11.04"]
[Round "10.19"]
[White "Artemiev, Vladislav"]
[Black "Shirov, Alexei"]
[Result "1-0"]
[WhiteElo "2697"]
[BlackElo "2655"]
[EventDate "2023.10.25"]
[ECO "D46"]
[PlyCount "61"]
[BlackFideId "2209390"]
[TimeControl "40/100 + 20/50 + 15 + 30s/move"]
[WhiteFideId "24101605"]

1.d4 {[%clk 01:40:32][%emt 00:00:27]} 1...d5 {[%clk 01:40:44][%emt 00:00:16]} 
2.c4 {[%clk 01:40:34][%emt 00:00:29]} 2...c6 {[%clk 01:41:10][%emt 00:00:04]} 
3.Nf3 {[%clk 01:39:53][%emt 00:01:10]} 3...Nf6 {[%clk 01:41:37][%emt 00:00:05]} 
4.Nc3 {[%clk 01:39:51][%emt 00:00:31]} 4...e6 {[%clk 01:41:26][%emt 00:00:41]} 
5.e3 {[%clk 01:39:39][%emt 00:00:42]} 5...Nbd7 {[%clk 01:40:50][%emt 00:01:06]} 
6.Qc2 {[%clk 01:39:18][%emt 00:00:51]} 6...Bd6 {[%clk 01:41:16][%emt 00:00:05]} 
7.Bd3 {[%clk 01:39:24][%emt 00:00:24]} 7...O-O {[%clk 01:40:58][%emt 00:00:47]} 
8.O-O {[%clk 01:39:05][%emt 00:00:49]} 8...dxc4 {[%clk 01:40:52][%emt 00:00:37]} 
9.Bxc4 {[%clk 01:39:23][%emt 00:00:11]} 9...b5 {[%clk 01:41:20][%emt 00:00:03]} 
10.Be2 {[%clk 01:38:24][%emt 00:01:28]} 10...Bb7 {[%clk 01:40:56][%emt
00:00:54]} 11.Rd1 {[%clk 01:37:37][%emt 00:01:17]} 11...Qc7 {[%clk
01:36:18][%emt 00:05:08]} 12.h3 {[%clk 01:35:37][%emt 00:02:30]} 12...b4 {[%clk
01:09:21][%emt 00:27:28]} 13.Na4 {[%clk 01:34:36][%emt 00:01:30]} 13...c5 
{[%clk 01:07:37][%emt 00:02:14]} 14.dxc5 {[%clk 01:34:32][%emt 00:00:33]} 
14...Rac8 {[%clk 00:54:29][%emt 00:13:39]} 15.Qd2 {[%clk 01:29:59][%emt
00:05:03]} 15...Nxc5 {[%clk 00:52:40][%emt 00:02:19]} 16.Qxd6 {[%clk
01:29:27][%emt 00:01:02]} 16...Qxd6 {[%clk 00:52:48][%emt 00:00:23]} 17.Rxd6 
{[%clk 01:29:47][%emt 00:00:10]} 17...Nxa4 {[%clk 00:53:13][%emt 00:00:04]} 
18.Rd4 {[%clk 00:58:09][%emt 00:32:08]} 18...a5 {[%clk 00:51:57][%emt 00:01:47]} 
19.Ne5 {[%clk 00:56:43][%emt 00:01:56]} 19...Rfd8 {[%clk 00:48:29][%emt
00:03:57]} 20.Rxd8+ {[%clk 00:56:04][%emt 00:01:09]} 20...Rxd8 {[%clk
00:48:53][%emt 00:00:06]} 21.f3 {[%clk 00:55:34][%emt 00:01:00]} 21...Rd5 
{[%clk 00:39:26][%emt 00:09:57]} 22.Nc4 {[%clk 00:24:37][%emt 00:31:27]} 
22...Ba6 {[%clk 00:39:42][%emt 00:00:13]} 23.Kf2 {[%clk 00:22:20][%emt
00:02:48]} 23...Nc5 {[%clk 00:22:26][%emt 00:17:46]} 24.e4 {[%clk 00:13:16][%emt
00:09:35]} 24...Nd3+ {[%clk 00:22:50][%emt 00:00:05]} 25.Bxd3 {[%clk
00:13:10][%emt 00:00:36]} 25...Rxd3 {[%clk 00:23:16][%emt 00:00:05]} 26.Nxa5 
{[%clk 00:13:35][%emt 00:00:05]} 26...Rd1 {[%clk 00:23:38][%emt 00:00:07]} 
27.Nc6 {[%clk 00:12:13][%emt 00:01:53]} 27...Rf1+ {[%clk 00:24:03][%emt
00:00:04]} 28.Kg3 {[%clk 00:10:19][%emt 00:02:25]} 28...Nh5+ {[%clk
00:23:43][%emt 00:00:50]} 29.Kh2 {[%clk 00:10:14][%emt 00:00:34]} 29...Rf2 
{[%clk 00:24:01][%emt 00:00:12]} 30.Nxb4 {[%clk 00:09:26][%emt 00:01:18]} 
30...Bf1 {[%clk 00:21:59][%emt 00:02:31]} 31.Kg1 {[%clk 00:09:49][%emt
00:00:07]} 1-0

[Event "FIDE Grand Swiss 2023"]
[Site "Villa Marina, Douglas, Isle of Man"]
[Date "2023.11.04"]
[Round "10.20"]
[White "Nihal, Sarin"]
[Black "Najer, Evgeniy"]
[Result "1/2-1/2"]
[WhiteElo "2694"]
[BlackElo "2648"]
[EventDate "2023.10.25"]
[ECO "D02"]
[PlyCount "87"]
[BlackFideId "4118987"]
[TimeControl "40/100 + 20/50 + 15 + 30s/move"]
[WhiteFideId "25092340"]

1.Nf3 {[%clk 01:40:31][%emt 00:00:28]} 1...d5 {[%clk 01:40:54][%emt 00:00:08]} 
2.d4 {[%clk 01:40:54][%emt 00:00:06]} 2...Nf6 {[%clk 01:41:20][%emt 00:00:04]} 
3.c3 {[%clk 01:41:17][%emt 00:00:06]} 3...c6 {[%clk 01:36:04][%emt 00:05:48]} 
4.Bf4 {[%clk 01:38:27][%emt 00:03:18]} 4...Bf5 {[%clk 01:31:06][%emt 00:05:28]} 
5.Nh4 {[%clk 01:38:28][%emt 00:00:29]} 5...Be4 {[%clk 01:22:27][%emt 00:09:10]} 
6.Nd2 {[%clk 01:38:27][%emt 00:00:30]} 6...e6 {[%clk 01:22:28][%emt 00:00:30]} 
7.Qb3 {[%clk 01:31:37][%emt 00:07:20]} 7...b6 {[%clk 01:09:14][%emt 00:13:45]} 
8.e3 {[%clk 01:25:14][%emt 00:06:51]} 8...Bd6 {[%clk 01:06:33][%emt 00:03:12]} 
9.Bg5 {[%clk 01:19:51][%emt 00:05:53]} 9...Nbd7 {[%clk 01:05:16][%emt 00:01:48]} 
10.Nxe4 {[%clk 01:10:47][%emt 00:09:34]} 10...dxe4 {[%clk 01:05:22][%emt
00:00:24]} 11.g3 {[%clk 01:11:00][%emt 00:00:16]} 11...O-O {[%clk 00:55:44][%emt
00:10:08]} 12.Qc2 {[%clk 01:04:10][%emt 00:07:19]} 12...h6 {[%clk 00:54:06][%emt
00:02:10]} 13.Bxf6 {[%clk 01:04:34][%emt 00:00:05]} 13...Nxf6 {[%clk
00:54:33][%emt 00:00:03]} 14.Be2 {[%clk 01:00:34][%emt 00:04:30]} 14...Qc7 
{[%clk 00:52:20][%emt 00:02:44]} 15.O-O {[%clk 00:57:47][%emt 00:03:17]} 
15...c5 {[%clk 00:49:56][%emt 00:02:55]} 16.Rad1 {[%clk 00:56:44][%emt
00:01:31]} 16...Rab8 {[%clk 00:48:56][%emt 00:01:30]} 17.dxc5 {[%clk
00:44:10][%emt 00:13:04]} 17...bxc5 {[%clk 00:44:01][%emt 00:05:26]} 18.Rd2 
{[%clk 00:43:51][%emt 00:00:48]} 18...Be5 {[%clk 00:42:59][%emt 00:01:33]} 
19.Rfd1 {[%clk 00:38:08][%emt 00:06:13]} 19...Rb6 {[%clk 00:39:20][%emt
00:04:08]} 20.Bc4 {[%clk 00:34:53][%emt 00:03:45]} 20...Rfb8 {[%clk
00:38:11][%emt 00:01:39]} 21.b3 {[%clk 00:35:03][%emt 00:00:21]} 21...g5 {[%clk
00:36:36][%emt 00:02:04]} 22.Ng2 {[%clk 00:35:28][%emt 00:00:05]} 22...Kg7 
{[%clk 00:37:04][%emt 00:00:03]} 23.Rf1 {[%clk 00:29:32][%emt 00:06:26]} 
23...Rd6 {[%clk 00:33:22][%emt 00:04:12]} 24.Rxd6 {[%clk 00:29:54][%emt
00:00:07]} 24...Qxd6 {[%clk 00:33:44][%emt 00:00:08]} 25.Rd1 {[%clk
00:30:20][%emt 00:00:04]} 25...Qc7 {[%clk 00:33:43][%emt 00:00:31]} 26.Ne1 
{[%clk 00:28:55][%emt 00:01:55]} 26...h5 {[%clk 00:19:00][%emt 00:15:14]} 27.f4 
{[%clk 00:20:16][%emt 00:09:08]} 27...exf3 {[%clk 00:19:25][%emt 00:00:07]} 
28.Nxf3 {[%clk 00:20:42][%emt 00:00:03]} 28...g4 {[%clk 00:18:20][%emt
00:01:36]} 29.Nxe5 {[%clk 00:19:58][%emt 00:01:13]} 29...Qxe5 {[%clk
00:18:46][%emt 00:00:03]} 30.Qf2 {[%clk 00:20:22][%emt 00:00:06]} 30...Ne4 
{[%clk 00:12:23][%emt 00:06:55]} 31.Qf4 {[%clk 00:20:45][%emt 00:00:06]} 
31...Qxf4 {[%clk 00:12:51][%emt 00:00:02]} 32.exf4 {[%clk 00:21:08][%emt
00:00:06]} 32...Nxc3 {[%clk 00:08:45][%emt 00:04:36]} 33.Rd7 {[%clk
00:21:31][%emt 00:00:08]} 33...Kf6 {[%clk 00:09:14][%emt 00:00:02]} 34.Rxa7 
{[%clk 00:20:28][%emt 00:01:32]} 34...Rd8 {[%clk 00:09:39][%emt 00:00:05]} 
35.a4 {[%clk 00:19:01][%emt 00:01:58]} 35...Rd1+ {[%clk 00:10:04] [%emt
00:00:05]} 36.Kg2 {[%clk 00:16:17] [%emt 00:03:13]} 36...Rd2+ {[%clk
00:06:36][%emt 00:03:58]} 37.Kg1 {[%clk 00:16:33][%emt 00:00:13]} 37...Rd1+ 
{[%clk 00:10:04][%emt 00:00:05]} 38.Kg2 {[%clk 00:16:17][%emt 00:03:13]} 
38...Nd5 {[%clk 00:02:00][%emt 00:02:21]} 39.Bxd5 {[%clk 00:13:57][%emt
00:03:30]} 39...exd5 {[%clk 00:02:08][%emt 00:00:23]} 40.Rc7 {[%clk
00:10:17][%emt 00:04:10]} 40...Rd2+ {[%clk 00:01:15][%emt 00:01:23]} 41.Kg1 
{[%clk 00:05:00] [%emt 00:05:47]} 41...Rd1+ {[%clk 00:15:55] [%emt 00:35:50]} 
42.Kf2 {[%clk 00:54:40] [%emt 00:00:49]} 42...Rd2+ {[%clk 00:16:23][%emt
00:00:03]} 43.Kg1 {[%clk 00:05:00][%emt 00:05:47]} 43...Rd1+ {[%clk
00:15:55][%emt 00:35:50]} 44.Kf2 {[%clk 00:54:40][%emt 00:00:49]} 1/2-1/2

[Event "FIDE Grand Swiss 2023"]
[Site "Villa Marina, Douglas, Isle of Man"]
[Date "2023.11.04"]
[Round "10.21"]
[White "Tabatabaei, M. Amin"]
[Black "Narayanan.S.L"]
[Result "1/2-1/2"]
[WhiteElo "2685"]
[BlackElo "2651"]
[EventDate "2023.10.25"]
[ECO "E10"]
[PlyCount "80"]
[BlackClock "01:07:00"]
[BlackFideId "5058422"]
[TimeControl "40/100 + 20/50 + 15 + 30s/move"]
[WhiteClock "00:29:46"]
[WhiteFideId "12521213"]

1.c4 {[%clk 01:39:25][%emt 00:01:33]} 1...c5 {[%clk 01:40:54][%emt 00:00:07]} 
2.Nf3 {[%clk 01:39:47][%emt 00:00:07]} 2...Nf6 {[%clk 01:41:14][%emt 00:00:10]} 
3.e3 {[%clk 01:40:12][%emt 00:00:06]} 3...e6 {[%clk 01:38:35][%emt 00:03:09]} 
4.d4 {[%clk 01:40:31][%emt 00:00:11]} 4...d5 {[%clk 01:38:57][%emt 00:00:07]} 
5.cxd5 {[%clk 01:40:54][%emt 00:00:07]} 5...exd5 {[%clk 01:39:22][%emt
00:00:06]} 6.Bb5+ {[%clk 01:41:17][%emt 00:00:08]} 6...Nc6 {[%clk 01:35:58][%emt
00:03:53]} 7.O-O {[%clk 01:41:35][%emt 00:00:11]} 7...cxd4 {[%clk 01:22:26][%emt
00:14:02]} 8.exd4 {[%clk 01:41:57][%emt 00:00:09]} 8...Be7 {[%clk 01:22:46][%emt
00:00:09]} 9.Nc3 {[%clk 01:42:17][%emt 00:00:11]} 9...Bg4 {[%clk 01:21:43][%emt
00:01:33]} 10.Qa4 {[%clk 01:35:42][%emt 00:07:05]} 10...O-O {[%clk
00:56:34][%emt 00:25:38]} 11.Ne5 {[%clk 01:17:32][%emt 00:18:41]} 11...Na5 
{[%clk 00:56:38][%emt 00:00:25]} 12.Nxg4 {[%clk 01:07:50][%emt 00:10:12]} 
12...Nxg4 {[%clk 00:57:03][%emt 00:00:06]} 13.h3 {[%clk 01:05:02][%emt
00:03:18]} 13...Nf6 {[%clk 00:55:14][%emt 00:02:19]} 14.Re1 {[%clk
01:05:26][%emt 00:00:06]} 14...a6 {[%clk 00:55:16][%emt 00:00:29]} 15.Bd3 
{[%clk 01:05:20][%emt 00:00:35]} 15...Nc6 {[%clk 00:53:38][%emt 00:02:07]} 
16.Be3 {[%clk 01:05:21][%emt 00:00:30]} 16...h6 {[%clk 00:49:11][%emt 00:04:57]} 
17.a3 {[%clk 01:05:15][%emt 00:00:36]} 17...Bd6 {[%clk 00:47:33][%emt 00:02:08]} 
18.Qd1 {[%clk 01:05:11][%emt 00:00:34]} 18...Re8 {[%clk 00:45:48][%emt
00:02:15]} 19.Qf3 {[%clk 01:01:15][%emt 00:04:26]} 19...Bc7 {[%clk
00:45:17][%emt 00:01:01]} 20.Na4 {[%clk 00:49:41][%emt 00:12:05]} 20...Ne4 
{[%clk 00:43:52][%emt 00:01:53]} 21.b4 {[%clk 00:49:26][%emt 00:00:46]} 
21...Bb6 {[%clk 00:33:28][%emt 00:10:54]} 22.Nc5 {[%clk 00:48:28][%emt
00:01:28]} 22...Bxc5 {[%clk 00:33:49][%emt 00:00:09]} 23.dxc5 {[%clk
00:48:28][%emt 00:00:30]} 23...a5 {[%clk 00:31:12][%emt 00:03:06]} 24.b5 {[%clk
00:46:21][%emt 00:02:38]} 24...Ne5 {[%clk 00:30:27][%emt 00:01:14]} 25.Qd1 
{[%clk 00:14:46][%emt 00:32:05]} 25...Rc8 {[%clk 00:30:06][%emt 00:00:51]} 
26.Bxe4 {[%clk 00:14:35][%emt 00:00:42]} 26...dxe4 {[%clk 00:30:30][%emt
00:00:05]} 27.Qxd8 {[%clk 00:14:43][%emt 00:00:23]} 27...Rexd8 {[%clk
00:30:55][%emt 00:00:05]} 28.Rec1 {[%clk 00:13:46][%emt 00:01:27]} 28...f5 
{[%clk 00:30:16][%emt 00:01:08]} 29.Rc3 {[%clk 00:08:30][%emt 00:05:47]} 
29...Kf7 {[%clk 00:24:42][%emt 00:06:04]} 30.Rb1 {[%clk 00:08:32][%emt
00:00:29]} 30...Rd3 {[%clk 00:20:13][%emt 00:04:57]} 31.Rxd3 {[%clk
00:08:46][%emt 00:00:17]} 31...Nxd3 {[%clk 00:20:31][%emt 00:00:11]} 32.c6 
{[%clk 00:07:55][%emt 00:01:21]} 32...bxc6 {[%clk 00:18:52][%emt 00:02:09]} 
33.b6 {[%clk 00:08:24][%emt 00:00:01]} 33...c5 {[%clk 00:18:55][%emt 00:00:27]} 
34.b7 {[%clk 00:08:21][%emt 00:00:33]} 34...Rb8 {[%clk 00:19:21][%emt 00:00:04]} 
35.Bd2 {[%clk 00:07:36][%emt 00:01:15]} 35...Ke7 {[%clk 00:17:09][%emt
00:02:42]} 36.Bxa5 {[%clk 00:08:01][%emt 00:00:06]} 36...Kd7 {[%clk
00:17:25][%emt 00:00:13]} 37.a4 {[%clk 00:04:53][%emt 00:03:39]} 37...Kc6 
{[%clk 00:15:50][%emt 00:02:05]} 38.Rb6+ {[%clk 00:05:07] [%emt 00:00:15]} 
38...Kc7 {[%clk 00:16:08] [%emt 00:00:12]} 39.Rb5+ {[%clk 00:01:39][%emt
00:03:58]} 39...Kc6 {[%clk 00:16:34][%emt 00:00:04]} 40.Rb6+ {[%clk
00:05:07][%emt 00:00:15]} 40...Kc7 {[%clk 00:16:08][%emt 00:00:12]} 1/2-1/2

[Event "FIDE Grand Swiss 2023"]
[Site "Villa Marina, Douglas, Isle of Man"]
[Date "2023.11.04"]
[Round "10.22"]
[White "Matlakov, Maxim"]
[Black "Saric, Ivan"]
[Result "1/2-1/2"]
[WhiteElo "2674"]
[BlackElo "2647"]
[EventDate "2023.10.25"]
[ECO "E00"]
[PlyCount "96"]
[BlackFideId "14508150"]
[TimeControl "40/100 + 20/50 + 15 + 30s/move"]
[WhiteFideId "4168003"]

1.d4 {[%clk 01:40:56][%emt 00:00:04]} 1...Nf6 {[%clk 01:40:54][%emt 00:00:06]} 
2.c4 {[%clk 01:41:20][%emt 00:00:07]} 2...e6 {[%clk 01:41:20][%emt 00:00:04]} 
3.Nf3 {[%clk 01:41:34][%emt 00:00:15]} 3...d5 {[%clk 01:41:46][%emt 00:00:05]} 
4.g3 {[%clk 01:41:02][%emt 00:01:02]} 4...Bb4+ {[%clk 01:41:21][%emt 00:00:55]} 
5.Bd2 {[%clk 01:40:26][%emt 00:01:05]} 5...a5 {[%clk 01:41:47][%emt 00:00:05]} 
6.Bg2 {[%clk 01:40:26][%emt 00:00:29]} 6...O-O {[%clk 01:42:08][%emt 00:00:09]} 
7.Qc1 {[%clk 01:40:06][%emt 00:00:51]} 7...Nbd7 {[%clk 01:41:21][%emt 00:01:17]} 
8.O-O {[%clk 01:38:39][%emt 00:01:56]} 8...Be7 {[%clk 01:41:47][%emt 00:00:04]} 
9.Rd1 {[%clk 01:37:36][%emt 00:01:33]} 9...c6 {[%clk 01:41:30][%emt 00:00:48]} 
10.Bf4 {[%clk 01:37:44][%emt 00:00:22]} 10...a4 {[%clk 01:40:59][%emt 00:01:02]} 
11.Qc2 {[%clk 01:37:18][%emt 00:00:55]} 11...h6 {[%clk 01:39:27][%emt 00:02:01]} 
12.a3 {[%clk 01:37:31][%emt 00:00:18]} 12...Ne4 {[%clk 01:37:11][%emt 00:02:46]} 
13.Nc3 {[%clk 01:33:39][%emt 00:04:22]} 13...Nxc3 {[%clk 01:35:42][%emt
00:01:59]} 14.Qxc3 {[%clk 01:33:58][%emt 00:00:11]} 14...f5 {[%clk
01:24:34][%emt 00:11:38]} 15.Ne5 {[%clk 01:26:03][%emt 00:08:25]} 15...g5 
{[%clk 01:14:12][%emt 00:10:52]} 16.Nxd7 {[%clk 01:15:02][%emt 00:11:31]} 
16...Bxd7 {[%clk 01:13:39][%emt 00:01:03]} 17.Be5 {[%clk 01:14:13][%emt
00:01:18]} 17...Qa5 {[%clk 01:02:45][%emt 00:11:24]} 18.Qd3 {[%clk
01:06:06][%emt 00:08:37]} 18...Bf6 {[%clk 00:57:11][%emt 00:06:04]} 19.Bxf6 
{[%clk 00:49:27][%emt 00:17:09]} 19...Rxf6 {[%clk 00:56:55][%emt 00:00:46]} 
20.b4 {[%clk 00:47:01][%emt 00:02:57]} 20...axb3 {[%clk 00:57:03][%emt
00:00:22]} 21.Qxb3 {[%clk 00:42:35][%emt 00:04:55]} 21...Ra7 {[%clk
00:57:27][%emt 00:00:06]} 22.h4 {[%clk 00:28:27][%emt 00:14:38]} 22...dxc4 
{[%clk 00:52:27][%emt 00:05:31]} 23.Qxc4 {[%clk 00:26:34][%emt 00:02:23]} 
23...gxh4 {[%clk 00:52:49][%emt 00:00:08]} 24.gxh4 {[%clk 00:21:00][%emt
00:06:03]} 24...Rg6 {[%clk 00:52:58][%emt 00:00:22]} 25.Kf1 {[%clk
00:16:21][%emt 00:05:09]} 25...Qc7 {[%clk 00:51:38][%emt 00:01:49]} 26.Qb3 
{[%clk 00:10:48][%emt 00:06:04]} 26...Qh2 {[%clk 00:42:06][%emt 00:10:02]} 
27.Qh3 {[%clk 00:10:43][%emt 00:00:34]} 27...Qxh3 {[%clk 00:42:11][%emt
00:00:25]} 28.Bxh3 {[%clk 00:11:12][%emt 00:00:01]} 28...b5 {[%clk
00:41:44][%emt 00:00:57]} 29.Bg2 {[%clk 00:08:11][%emt 00:03:30]} 29...Kf7 
{[%clk 00:38:36][%emt 00:03:38]} 30.Rac1 {[%clk 00:06:21][%emt 00:02:20]} 
30...Rxa3 {[%clk 00:38:12][%emt 00:00:54]} 31.Bxc6 {[%clk 00:06:38][%emt
00:00:13]} 31...Bxc6 {[%clk 00:36:31][%emt 00:02:11]} 32.Rxc6 {[%clk
00:06:39][%emt 00:00:29]} 32...Rh3 {[%clk 00:36:56][%emt 00:00:05]} 33.e3 
{[%clk 00:06:56][%emt 00:00:13]} 33...f4 {[%clk 00:32:06][%emt 00:05:20]} 
34.exf4 {[%clk 00:05:29][%emt 00:01:56]} 34...Rxh4 {[%clk 00:32:12][%emt
00:00:24]} 35.Rc5 {[%clk 00:02:45][%emt 00:03:14]} 35...Rh1+ {[%clk
00:30:47][%emt 00:01:55]} 36.Ke2 {[%clk 00:03:12][%emt 00:00:04]} 36...Rxd1 
{[%clk 00:31:14][%emt 00:00:03]} 37.Kxd1 {[%clk 00:03:38][%emt 00:00:03]} 
37...Rf6 {[%clk 00:30:28][%emt 00:01:16]} 38.d5 {[%clk 00:03:13][%emt 00:00:56]} 
38...exd5 {[%clk 00:30:29][%emt 00:00:29]} 39.Rxb5 {[%clk 00:02:33][%emt
00:01:10]} 39...d4 {[%clk 00:29:35][%emt 00:01:24]} 40.Ke2 {[%clk 00:00:46][%emt
00:02:16]} 40...Rxf4 {[%clk 00:29:48][%emt 00:00:17]} 41.Kd3 {[%clk
00:48:34][%emt 00:02:41]} 41...Kg6 {[%clk 01:14:42][%emt 00:05:36]} 42.Rd5 
{[%clk 00:48:06][%emt 00:00:58]} 42...Rxf2 {[%clk 01:13:55][%emt 00:01:17]} 
43.Rxd4 {[%clk 00:47:58][%emt 00:00:39]} 43...Kg5 {[%clk 01:14:19][%emt
00:00:05]} 44.Ke3 {[%clk 00:48:15][%emt 00:00:14]} 44...Rf6 {[%clk
01:14:24][%emt 00:00:25]} 45.Ke2 {[%clk 00:47:21][%emt 00:01:24]} 45...h5 
{[%clk 01:14:48][%emt 00:00:05]} 46.Rd1 {[%clk 00:47:46][%emt 00:00:05]} 
46...h4 {[%clk 01:14:54][%emt 00:00:24]} 47.Rf1 {[%clk 00:47:55][%emt 00:00:21]} 
47...h3 {[%clk 01:15:11][%emt 00:00:14]} 48.Rxf6 {[%clk 00:48:20]} ( 48.Rf3 
{[%emt 00:00:04]} 48...Rf5 49.Rxf5+ {Maxim Matlakov 2674 - Ivan Saric 2647, FIDE
Grand Swiss 2023, Villa Marina, Douglas, Isle of Man, Isle Of Man (10.22),
2023.11.04} ) 48...Kxf6 {[%emt 00:00:07]} 1/2-1/2